bitfinex/quotes_SOLUSD_20230110
["timestamp","ask_amount","ask_price","bid_price","bid_amount"]
[1673325544240,113.8229,15.91,15.9,27.04]
[1673325544781,113.8229,15.91,15.901,20.0]
[1673325545714,47.14,15.914,15.902,20.0]
[1673325545924,47.14,15.914,15.903,17.0]
[1673325546160,47.14,15.916,15.903,17.0]
[1673325546678,47.14,15.916,15.905,20.0]
[1673325546887,47.14,15.917,15.906,17.0]
[1673325547203,47.14,15.917,15.906,65.33426472]
[1673325547423,47.14,15.917,15.907,20.0]
[1673325547620,47.14,15.917,15.906,48.33426472]
[1673325547814,47.11,15.925,15.911,20.0]
[1673325548025,20.0,15.924,15.911,20.0]
[1673325548236,20.0,15.922,15.911,68.33426472]
[1673325548444,67.11,15.924,15.911,68.33426472]
[1673325548974,67.11,15.924,15.911,48.33426472]
[1673325549182,67.11,15.924,15.907,25.82592]
[1673325549399,20.0,15.922,15.902,34.22]
[1673325549603,20.0,15.92,15.902,31.60957]
[1673325549811,67.13,15.919,15.902,11.60957]
[1673325550358,20.0,15.918,15.902,11.60957]
[1673325550570,47.14,15.917,15.902,11.60957]
[1673325550878,47.14,15.917,15.903,20.0]
[1673325551091,47.14,15.917,15.904,11.60811]
[1673325551312,109.3302,15.918,15.91,26.8]
[1673325551502,156.4502,15.923,15.91,26.8]
[1673325551844,109.3302,15.923,15.91,70.15715754]
[1673325552033,109.3302,15.923,15.911,16.26]
[1673325552783,109.3302,15.923,15.912,17.0]
[1673325553500,109.3302,15.923,15.913,20.0]
[1673325553705,47.11,15.925,15.913,20.0]
[1673325553924,20.0,15.935,15.913,20.0]
[1673325553925,160.8129,15.934,15.914,53.23081]
[1673325554140,20.0,15.933,15.915,51.60008]
[1673325554355,47.09,15.932,15.917,20.0]
[1673325554548,47.09,15.932,15.918,20.0]
[1673325554758,20.0,15.931,15.919,17.0]
[1673325554982,47.09,15.932,15.919,17.0]
[1673325554983,47.1,15.93,15.92,20.0]
[1673325555198,47.09,15.932,15.92,20.0]
[1673325555387,47.09,15.932,15.92,46.88]
[1673325555603,47.09,15.933,15.921,20.0]
[1673325555825,47.09,15.933,15.922,17.0]
[1673325556149,20.0,15.932,15.922,17.0]
[1673325556541,20.0,15.932,15.92,46.88]
[1673325558223,47.09,15.933,15.92,80.62676087]
[1673325558544,113.7329,15.934,15.921,20.0]
[1673325558755,47.09,15.933,15.92,20.0]
[1673325559083,47.09,15.933,15.918,20.0]
[1673325559404,47.09,15.933,15.916,20.0]
[1673325559714,113.7329,15.934,15.916,20.0]
[1673325559715,20.0,15.924,15.916,20.0]
[1673325560117,20.0,15.932,15.916,20.0]
[1673325560338,47.09,15.931,15.916,20.0]
[1673325560552,20.0,15.93,15.918,20.0]
[1673325560875,20.0,15.928,15.919,17.0]
[1673325561081,47.1,15.929,15.919,17.0]
[1673325561275,47.1,15.929,15.92,20.0]
[1673325561606,47.1,15.929,15.92,19.90043272]
[1673325561815,20.0,15.93,15.92,19.90043272]
[1673325562015,47.1,15.929,15.921,17.0]
[1673325562667,47.11,15.925,15.915,11.60008]
[1673325562874,47.11,15.925,15.911,39.6]
[1673325563065,165.1213,15.925,15.911,20.0]
[1673325563280,20.0,15.924,15.911,20.0]
[1673325563824,47.12,15.923,15.911,20.0]
[1673325564012,20.0,15.922,15.91,46.86]
[1673325564429,20.0,15.922,15.91,26.86]
[1673325565086,20.0,15.922,15.909,19.97]
[1673325565398,20.0,15.92,15.908,40.59]
[1673325565591,20.0,15.92,15.908,20.0]
[1673325566137,20.0,15.92,15.909,20.0]
[1673325566469,128.621,15.92,15.909,20.0]
[1673325566762,128.621,15.92,15.908,20.0]
[1673325566977,20.0,15.918,15.908,20.0]
[1673325572121,20.0,15.92,15.908,20.0]
[1673325572441,20.0,15.922,15.909,20.0]
[1673325572634,20.0,15.92,15.909,20.0]
[1673325573369,20.0,15.92,15.908,44.86]
[1673325573600,47.13,15.919,15.908,20.0]
[1673325573908,20.0,15.918,15.908,20.0]
[1673325574122,20.0,15.918,15.904,20.0]
[1673325575054,47.14,15.917,15.902,33.74676087]
[1673325575276,20.0,15.916,15.902,33.74676087]
[1673325575472,20.0,15.914,15.9,27.03]
[1673325575676,47.15,15.913,15.9,27.03]
[1673325575886,20.0,15.912,15.9,27.03]
[1673325576097,136.7911,15.912,15.9,27.03]
[1673325576525,20.0,15.91,15.901,20.0]
[1673325578852,20.0,15.91,15.902,17.0]
[1673325579687,47.15,15.911,15.902,17.0]
[1673325584858,20.0,15.91,15.902,17.0]
[1673325587383,136.7911,15.912,15.902,17.0]
[1673325588639,20.0,15.91,15.902,17.0]
[1673325588869,47.15,15.911,15.902,17.0]
[1673325590637,116.7911,15.912,15.902,17.0]
[1673325590960,20.0,15.911,15.902,17.0]
[1673325594417,116.7911,15.912,15.902,17.0]
[1673325595691,20.0,15.911,15.902,17.0]
[1673325596320,116.7911,15.912,15.902,17.0]
[1673325596530,47.15,15.913,15.902,17.0]
[1673325596740,47.14,15.916,15.903,20.0]
[1673325597453,20.0,15.915,15.904,17.0]
[1673325597669,47.14,15.916,15.904,17.0]
[1673325598098,20.0,15.915,15.904,17.0]
[1673325598310,47.14,15.916,15.904,17.0]
[1673325598520,135.7524,15.92,15.904,17.0]
[1673325598521,47.13,15.918,15.906,20.0]
[1673325598719,47.13,15.919,15.907,20.0]
[1673325598937,47.13,15.919,15.908,17.0]
[1673325599265,47.13,15.919,15.909,20.0]
[1673325599457,20.0,15.916,15.91,17.0]
[1673325599787,67.14,15.916,15.911,20.0]
[1673325600191,20.0,15.916,15.911,20.0]
[1673325600399,20.0,15.916,15.912,17.0]
[1673325602946,67.14,15.916,15.912,17.0]
[1673325606631,47.14,15.916,15.912,17.0]
[1673325606812,112.6079,15.917,15.912,17.0]
[1673325607024,20.0,15.916,15.912,17.0]
[1673325607857,135.7524,15.92,15.912,17.0]
[1673325607858,115.7524,15.92,15.912,17.0]
[1673325609029,117.9887,15.923,15.913,20.0]
[1673325609668,20.0,15.922,15.913,20.0]
[1673325609871,20.0,15.922,15.914,17.0]
[1673325610395,47.12,15.921,15.915,56.21687807]
[1673325610589,46.92,15.92,15.904,31.60811]
[1673325610807,47.13,15.919,15.9,70.11]
[1673325611270,20.0,15.918,15.9,46.96]
[1673325611463,47.14,15.917,15.9,46.96]
[1673325611887,20.0,15.916,15.9,46.96]
[1673325612095,47.14,15.915,15.9,46.96]
[1673325612725,20.0,15.914,15.9,46.96]
[1673325612934,47.15,15.913,15.9,46.96]
[1673325613469,47.14,15.915,15.9,46.96]
[1673325613872,20.0,15.914,15.9,46.96]
[1673325614090,47.15,15.913,15.9,46.96]
[1673325616096,20.0,15.912,15.9,46.96]
[1673325616314,47.15,15.911,15.901,20.0]
[1673325617357,20.0,15.91,15.901,20.0]
[1673325618616,47.16,15.909,15.901,20.0]
[1673325618927,20.0,15.908,15.901,20.0]
[1673325619142,47.16,15.907,15.895,20.0]
[1673325619538,20.0,15.906,15.895,20.0]
[1673325619876,20.0,15.906,15.896,17.0]
[1673325620087,20.0,15.906,15.897,20.0]
[1673325620489,20.0,15.906,15.898,17.0]
[1673325620710,47.16,15.907,15.899,20.0]
[1673325620922,47.16,15.907,15.9,17.0]
[1673325621139,47.16,15.907,15.901,20.0]
[1673325621447,20.0,15.906,15.894,18.05]
[1673325621646,47.17,15.905,15.893,16.88]
[1673325621857,47.17,15.905,15.889,20.0]
[1673325621858,47.17,15.905,15.891,16.74]
[1673325622069,135.9421,15.904,15.891,16.74]
[1673325622696,157.0575,15.903,15.888,48.89676087]
[1673325622905,20.0,15.902,15.888,29.32676087]
[1673325623137,47.18,15.901,15.889,41.0]
[1673325623348,20.0,15.9,15.889,20.0]
[1673325623536,20.0,15.9,15.888,41.19]
[1673325624082,20.0,15.9,15.889,17.0]
[1673325624293,20.0,15.902,15.89,20.0]
[1673325624903,20.0,15.902,15.889,20.0]
[1673325628393,47.18,15.901,15.889,20.0]
[1673325628588,47.18,15.901,15.888,20.0]
[1673325628798,20.0,15.9,15.888,20.0]
[1673325629011,20.0,15.9,15.888,49.32676087]
[1673325630189,20.0,15.9,15.889,25.7]
[1673325630373,20.0,15.9,15.888,49.32676087]
[1673325630584,47.18,15.901,15.888,49.32676087]
[1673325631124,20.0,15.9,15.889,17.0]
[1673325631314,47.18,15.901,15.89,20.0]
[1673325632161,20.0,15.9,15.889,20.0]
[1673325632375,20.0,15.898,15.889,20.0]
[1673325633436,20.0,15.898,15.89,17.0]
[1673325633647,20.0,15.898,15.891,20.0]
[1673325633960,47.19,15.899,15.892,17.0]
[1673325634173,20.0,15.902,15.891,20.0]
[1673325634174,20.0,15.9,15.891,20.0]
[1673325634376,47.19,15.899,15.889,20.0]
[1673325634587,20.0,15.898,15.889,20.0]
[1673325635854,47.19,15.899,15.89,17.0]
[1673325636071,47.19,15.899,15.891,20.0]
[1673325636378,47.19,15.899,15.892,17.0]
[1673325637309,20.0,15.898,15.892,17.0]
[1673325638676,20.0,15.898,15.891,20.0]
[1673325638883,47.19,15.897,15.889,20.0]
[1673325639096,20.0,15.896,15.889,20.0]
[1673325641415,47.19,15.897,15.889,20.0]
[1673325641841,47.19,15.897,15.89,17.0]
[1673325642042,47.19,15.897,15.891,20.0]
[1673325642476,47.19,15.897,15.892,17.0]
[1673325644894,47.19,15.899,15.892,17.0]
[1673325645105,20.0,15.898,15.892,17.0]
[1673325645419,47.19,15.897,15.892,17.0]
[1673325646263,20.0,15.898,15.892,17.0]
[1673325646675,20.0,15.896,15.892,17.0]
[1673325647520,47.19,15.897,15.892,17.0]
[1673325647918,20.0,15.896,15.892,17.0]
[1673325648798,47.19,15.897,15.892,17.0]
[1673325648976,47.19,15.899,15.892,17.0]
[1673325649187,20.0,15.898,15.892,17.0]
[1673325652572,20.0,15.9,15.892,17.0]
[1673325652788,47.19,15.899,15.892,17.0]
[1673325653006,20.0,15.9,15.892,17.0]
[1673325664339,20.0,15.902,15.892,17.0]
[1673325664551,158.4439,15.909,15.893,49.32676087]
[1673325664753,131.2839,15.909,15.893,80.94290087]
[1673325665076,111.2839,15.909,15.9,26.77]
[1673325665287,111.2839,15.909,15.901,20.0]
[1673325665482,111.2839,15.909,15.902,20.0]
[1673325666756,111.2839,15.909,15.903,17.0]
[1673325668979,114.5258,15.912,15.903,17.0]
[1673325671383,20.0,15.911,15.903,17.0]
[1673325671589,20.0,15.911,15.901,51.49342754]
[1673325673059,67.15,15.911,15.901,51.49342754]
[1673325675505,67.15,15.911,15.901,20.0]
[1673325677054,26.67,15.91,15.891,11.5]
[1673325677260,20.0,15.908,15.889,20.0]
[1673325677470,47.16,15.907,15.889,51.49342754]
[1673325677679,20.0,15.906,15.889,51.49342754]
[1673325677905,47.17,15.905,15.889,51.49342754]
[1673325678115,226.1607,15.904,15.889,51.49342754]
[1673325678329,67.18,15.903,15.889,51.49342754]
[1673325679595,67.18,15.903,15.89,20.0]
[1673325679996,67.18,15.903,15.891,20.0]
[1673325680516,67.18,15.903,15.89,20.0]
[1673325682318,47.18,15.903,15.89,20.0]
[1673325682517,47.18,15.903,15.89,51.49342754]
[1673325682834,226.1607,15.904,15.891,20.0]
[1673325683048,47.18,15.903,15.891,20.0]
[1673325683257,47.18,15.903,15.891,51.49342754]
[1673325683460,226.1607,15.904,15.891,51.49342754]
[1673325683882,47.16,15.91,15.892,14.7]
[1673325684110,47.15,15.911,15.893,51.61614]
[1673325684327,47.15,15.911,15.894,16.39]
[1673325684524,47.15,15.911,15.895,20.0]
[1673325684743,114.5258,15.912,15.897,20.0]
[1673325684953,47.15,15.911,15.898,40.05]
[1673325685164,47.15,15.911,15.899,20.0]
[1673325685351,47.15,15.911,15.9,20.0]
[1673325685887,47.15,15.911,15.901,20.0]
[1673325688206,47.15,15.911,15.9,20.0]
[1673325693793,20.0,15.91,15.9,20.0]
[1673325694004,47.15,15.911,15.9,20.0]
[1673325694847,20.0,15.91,15.9,20.0]
[1673325695364,20.0,15.91,15.901,17.0]
[1673325695677,67.15,15.911,15.901,17.0]
[1673325695874,20.0,15.91,15.901,34.37372092]
[1673325696086,47.16,15.909,15.901,34.37372092]
[1673325696921,47.16,15.91,15.901,34.37372092]
[1673325697131,20.0,15.909,15.901,34.37372092]
[1673325697342,47.16,15.908,15.901,34.37372092]
[1673325697558,20.0,15.909,15.901,34.37372092]
[1673325697999,47.16,15.91,15.901,34.37372092]
[1673325698205,47.15,15.911,15.901,34.37372092]
[1673325698841,20.0,15.91,15.901,34.37372092]
[1673325699052,47.16,15.909,15.901,34.37372092]
[1673325705897,47.16,15.91,15.901,34.37372092]
[1673325706089,20.0,15.909,15.901,34.37372092]
[1673325707579,47.16,15.91,15.901,34.37372092]
[1673325712231,20.0,15.909,15.901,34.37372092]
[1673325712559,47.16,15.91,15.901,34.37372092]
[1673325716309,20.0,15.909,15.901,34.37372092]
[1673325718327,47.16,15.91,15.901,34.37372092]
[1673325718530,47.15,15.911,15.901,34.37372092]
[1673325719490,20.0,15.91,15.901,34.37372092]
[1673325722962,47.15,15.911,15.901,34.37372092]
[1673325723172,114.5258,15.912,15.901,34.37372092]
[1673325723695,114.5258,15.912,15.902,20.0]
[1673325724091,114.5258,15.912,15.903,17.37372092]
[1673325729159,5.6095781,15.926,15.904,78.71153754]
[1673325729160,47.11,15.925,15.904,78.71153754]
[1673325729364,160.876,15.925,15.91,26.95]
[1673325729554,160.876,15.925,15.911,20.0]
[1673325729768,160.876,15.925,15.912,20.0]
[1673325729991,160.876,15.925,15.912,74.23696371]
[1673325730188,160.876,15.925,15.912,101.43836113]
[1673325730397,160.876,15.925,15.913,98.81208205]
[1673325730715,160.876,15.925,15.914,74.23696371]
[1673325730939,160.876,15.925,15.915,17.0]
[1673325731129,160.876,15.925,15.915,71.23696371]
[1673325731338,160.876,15.925,15.916,17.37372092]
[1673325731561,47.11,15.925,15.916,17.37372092]
[1673325731776,5.6095781,15.926,15.917,93.86324279]
[1673325731986,5.6095781,15.926,15.917,114.93324279]
[1673325732196,5.6095781,15.926,15.918,54.23696371]
[1673325732527,5.6095781,15.926,15.919,17.0]
[1673325732737,5.6095781,15.926,15.92,20.0]
[1673325732949,5.6095781,15.926,15.921,17.0]
[1673325734932,5.6095781,15.926,15.921,34.37372092]
[1673325735158,5.6095781,15.926,15.92,20.0]
[1673325737029,5.6095781,15.926,15.921,17.37372092]
[1673325737240,5.6095781,15.926,15.922,20.0]
[1673325737675,5.6095781,15.926,15.923,17.37372092]
[1673325741464,5.6095781,15.926,15.92,111.31511834]
[1673325741673,5.6095781,15.926,15.922,17.37372092]
[1673325742626,5.6095781,15.926,15.923,20.0]
[1673325742836,5.6095781,15.926,15.922,54.23696371]
[1673325743048,5.6095781,15.926,15.922,36.86324279]
[1673325743239,5.6095781,15.926,15.921,20.0]
[1673325743449,5.6095781,15.926,15.922,17.37372092]
[1673325745449,47.07,15.938,15.923,20.0]
[1673325745655,47.08,15.936,15.923,20.0]
[1673325745864,20.0,15.935,15.924,17.37372092]
[1673325747244,20.0,15.935,15.923,81.43836113]
[1673325747437,20.0,15.933,15.922,17.37372092]
[1673325747773,20.0,15.933,15.924,17.37372092]
[1673325748190,20.0,15.933,15.921,45.64]
[1673325748403,67.08,15.935,15.921,45.64]
[1673325748721,67.08,15.935,15.922,17.37372092]
[1673325748932,156.8884,15.936,15.923,17.0]
[1673325749127,156.8884,15.936,15.923,53.86324279]
[1673325749332,156.8884,15.936,15.924,17.37372092]
[1673325749559,20.0,15.935,15.924,37.37372092]
[1673325749975,20.0,15.935,15.925,34.37372092]
[1673325750203,47.08,15.936,15.925,34.37372092]
[1673325750396,47.08,15.937,15.926,17.37372092]
[1673325751032,47.08,15.937,15.927,17.0]
[1673325751259,117.6293,15.936,15.927,17.0]
[1673325751441,47.08,15.935,15.927,17.0]
[1673325752298,20.0,15.934,15.927,17.0]
[1673325752491,47.09,15.933,15.927,17.0]
[1673325752924,20.0,15.932,15.927,17.0]
[1673325754202,20.0,15.932,15.922,17.37372092]
[1673325754513,46.77,15.93,15.913,19.95]
[1673325754725,67.1,15.929,15.911,39.95]
[1673325754930,67.1,15.929,15.912,17.37372092]
[1673325755146,20.0,15.928,15.912,17.37372092]
[1673325755455,47.11,15.927,15.912,17.37372092]
[1673325755867,20.0,15.926,15.912,17.37372092]
[1673325756076,47.11,15.925,15.912,17.37372092]
[1673325756920,47.11,15.925,15.913,17.0]
[1673325757249,47.11,15.925,15.914,17.37372092]
[1673325759227,47.11,15.925,15.915,17.0]
[1673325759644,108.5511,15.928,15.916,37.37372092]
[1673325759865,47.11,15.927,15.918,20.0]
[1673325760073,47.11,15.927,15.919,20.0]
[1673325760913,47.11,15.927,15.92,17.0]
[1673325761125,47.11,15.927,15.921,20.0]
[1673325761463,47.11,15.927,15.922,17.0]
[1673325765768,108.5511,15.928,15.922,17.0]
[1673325767031,108.5511,15.928,15.921,20.0]
[1673325767249,20.0,15.926,15.919,20.0]
[1673325767457,20.0,15.926,15.916,20.0]
[1673325768698,67.11,15.927,15.916,20.0]
[1673325769345,20.0,15.926,15.916,20.0]
[1673325770084,47.11,15.927,15.917,37.37372092]
[1673325770400,47.11,15.927,15.918,37.37372092]
[1673325771128,47.11,15.927,15.918,20.0]
[1673325772806,47.11,15.927,15.918,37.37372092]
[1673325773443,20.0,15.926,15.918,20.0]
[1673325773633,20.0,15.926,15.917,17.37372092]
[1673325773846,20.0,15.926,15.918,20.0]
[1673325774174,47.11,15.927,15.918,20.0]
[1673325776472,47.11,15.927,15.919,17.37372092]
[1673325776696,108.5511,15.928,15.92,20.0]
[1673325777958,108.5511,15.928,15.92,37.37372092]
[1673325779435,47.09,15.931,15.92,37.37372092]
[1673325779638,20.0,15.931,15.92,37.37372092]
[1673325781754,154.22,15.93,15.919,27.29926299]
[1673325782062,20.0,15.928,15.906,20.0]
[1673325782276,47.11,15.927,15.907,7.294]
[1673325782483,66.11061681,15.927,15.907,7.294]
[1673325782678,20.0,15.926,15.907,7.294]
[1673325782888,47.11,15.925,15.907,7.294]
[1673325783100,20.0,15.924,15.907,7.294]
[1673325783324,47.12,15.923,15.907,7.294]
[1673325783744,20.0,15.922,15.907,7.294]
[1673325783950,47.12,15.921,15.907,7.294]
[1673325784465,47.12,15.921,15.908,20.0]
[1673325784899,47.12,15.921,15.909,20.0]
[1673325785092,47.12,15.921,15.91,20.0]
[1673325785746,47.11,15.925,15.91,35.42852179]
[1673325786054,47.11,15.925,15.911,20.0]
[1673325786476,47.11,15.925,15.911,35.42852179]
[1673325786790,20.0,15.926,15.911,53.75852179]
[1673325786999,47.11,15.925,15.911,53.75852179]
[1673325787212,20.0,15.924,15.911,38.33]
[1673325787846,20.0,15.924,15.911,20.0]
[1673325788052,20.0,15.924,15.91,64.4]
[1673325788252,47.12,15.923,15.91,64.4]
[1673325789209,20.0,15.922,15.91,64.4]
[1673325789409,20.0,15.922,15.91,46.74]
[1673325790478,47.12,15.923,15.91,46.74]
[1673325790686,20.0,15.924,15.911,14.33]
[1673325792581,20.0,15.924,15.91,46.74]
[1673325792582,20.0,15.922,15.91,20.0]
[1673325792797,47.12,15.921,15.91,20.0]
[1673325793107,20.0,15.92,15.908,20.0]
[1673325793428,47.13,15.919,15.908,20.0]
[1673325793621,175.8934,15.92,15.908,20.0]
[1673325795215,175.8934,15.92,15.907,20.0]
[1673325801307,175.8934,15.92,15.907,40.0]
[1673325803098,155.8934,15.92,15.908,20.0]
[1673325803413,155.8934,15.92,15.909,20.0]
[1673325804147,155.8934,15.92,15.908,20.0]
[1673325804461,20.0,15.919,15.908,20.0]
[1673325804673,47.13,15.918,15.908,20.0]
[1673325804983,47.13,15.919,15.908,20.0]
[1673325805193,47.13,15.919,15.907,20.0]
[1673325807189,47.13,15.919,15.908,20.0]
[1673325807596,155.8934,15.92,15.908,20.0]
[1673325807807,155.8934,15.92,15.909,17.0]
[1673325808018,155.8934,15.92,15.91,20.0]
[1673325808229,155.8934,15.92,15.907,55.41084499]
[1673325808444,155.8934,15.92,15.907,40.0]
[1673325809187,155.8934,15.92,15.908,17.0]
[1673325809401,155.8934,15.92,15.909,20.0]
[1673325809587,155.8934,15.92,15.91,17.0]
[1673325809805,155.8934,15.92,15.911,20.0]
[1673325810024,155.8934,15.92,15.909,20.0]
[1673325810338,20.0,15.919,15.909,20.0]
[1673325810557,20.0,15.919,15.907,20.0]
[1673325810751,20.0,15.919,15.907,40.0]
[1673325812338,155.8934,15.92,15.907,40.0]
[1673325812862,155.8934,15.92,15.908,37.0]
[1673325813052,155.8934,15.92,15.909,20.0]
[1673325813486,155.8934,15.92,15.91,17.0]
[1673325813699,155.8934,15.92,15.911,20.0]
[1673325813910,155.8934,15.92,15.912,17.0]
[1673325815680,20.0,15.919,15.912,17.0]
[1673325817909,155.8934,15.92,15.912,17.0]
[1673325818646,20.0,15.919,15.912,17.0]
[1673325818834,155.8934,15.92,15.912,17.0]
[1673325819172,20.0,15.919,15.912,17.0]
[1673325821696,47.13,15.918,15.912,17.0]
[1673325821890,20.0,15.917,15.912,17.0]
[1673325822104,67.13,15.919,15.912,17.0]
[1673325841889,47.13,15.919,15.912,17.0]
[1673325842078,20.0,15.918,15.912,17.0]
[1673325845971,20.0,15.918,15.9,26.73]
[1673325846186,20.0,15.916,15.902,30.0]
[1673325846395,47.14,15.915,15.901,20.0]
[1673325846607,20.0,15.914,15.898,31.27]
[1673325846836,20.0,15.912,15.899,20.0]
[1673325847472,129.18,15.912,15.899,20.0]
[1673325848828,47.15,15.911,15.899,20.0]
[1673325849039,109.18,15.912,15.9,44.23]
[1673325849257,109.18,15.912,15.901,20.0]
[1673325849765,109.18,15.912,15.902,19.28]
[1673325849982,109.18,15.912,15.901,60.81]
[1673325854737,109.18,15.912,15.901,40.0]
[1673325855462,47.15,15.911,15.901,40.0]
[1673325858625,20.0,15.91,15.901,20.0]
[1673325858935,20.0,15.91,15.897,20.0]
[1673325859248,20.0,15.908,15.897,20.0]
[1673325859457,47.16,15.909,15.897,40.0]
[1673325859643,47.16,15.91,15.898,20.0]
[1673325859853,47.15,15.911,15.899,20.0]
[1673325862081,47.15,15.911,15.9,20.0]
[1673325862294,47.15,15.911,15.901,20.0]
[1673325867747,20.0,15.91,15.899,20.0]
[1673325868165,155.5334,15.92,15.902,15.93717909]
[1673325868166,108.7634,15.92,15.902,15.93717909]
[1673325868367,108.7634,15.92,15.903,91.68]
[1673325868580,108.7634,15.92,15.903,187.39774807]
[1673325868797,108.7634,15.92,15.905,20.0]
[1673325869014,108.7634,15.92,15.906,37.07]
[1673325869320,108.7634,15.92,15.907,40.0]
[1673325869540,108.7634,15.92,15.907,151.65492716]
[1673325869732,108.7634,15.92,15.909,20.0]
[1673325870068,108.7634,15.92,15.91,17.0]
[1673325870283,108.7634,15.92,15.91,89.58205]
[1673325870494,108.7634,15.92,15.91,105.51922909]
[1673325870800,20.0,15.921,15.91,105.51922909]
[1673325871010,47.12,15.922,15.91,105.51922909]
[1673325871204,47.12,15.922,15.911,20.0]
[1673325871410,47.12,15.922,15.912,17.0]
[1673325871637,114.7862,15.936,15.912,124.87922909]
[1673325871847,108.3695,15.933,15.913,15.93717909]
[1673325872062,20.0,15.932,15.914,20.0]
[1673325872264,47.09,15.931,15.914,40.0]
[1673325872484,47.09,15.931,15.914,80.01]
[1673325872885,20.0,15.93,15.915,17.0]
[1673325873105,47.1,15.929,15.917,20.0]
[1673325873318,47.09,15.931,15.918,20.0]
[1673325873735,47.09,15.931,15.918,35.93717909]
[1673325873950,47.09,15.932,15.919,15.93717909]
[1673325874269,47.09,15.932,15.92,20.0]
[1673325874692,47.09,15.932,15.921,17.0]
[1673325875423,108.3695,15.933,15.921,17.0]
[1673325875621,20.0,15.931,15.921,17.0]
[1673325878153,47.09,15.932,15.921,17.0]
[1673325878366,20.0,15.932,15.922,15.93717909]
[1673325878787,47.09,15.932,15.922,15.93717909]
[1673325878999,47.09,15.932,15.922,48.20092179]
[1673325879202,47.08,15.935,15.922,94.40223416]
[1673325879413,159.1241,15.942,15.923,47.53142909]
[1673325879746,20.0,15.941,15.925,20.0]
[1673325879931,47.07,15.94,15.927,20.0]
[1673325880146,47.06,15.941,15.928,20.0]
[1673325880481,112.0641,15.942,15.929,20.0]
[1673325880796,47.06,15.941,15.93,20.0]
[1673325881012,47.06,15.941,15.93,46.74]
[1673325881200,112.0641,15.942,15.93,62.67717909]
[1673325881410,20.0,15.941,15.93,62.67717909]
[1673325881615,20.0,15.941,15.93,116.5526187]
[1673325881826,112.0641,15.942,15.93,158.9226187]
[1673325882036,112.0641,15.942,15.931,15.93717909]
[1673325882470,20.0,15.941,15.931,15.93717909]
[1673325882688,20.0,15.941,15.93,142.98543961]